bitfinex/quotes_ETHUSD_20250623
["timestamp","ask_amount","ask_price","bid_price","bid_amount"]
[1750709440972,0.005,2325.6,2325.4,4.30029928]
[1750709441546,0.005,2325.6,2325.4,4.30029503]
[1750709441756,0.005,2325.6,2325.5,4.3001505]
[1750709443180,0.005,2325.6,2325.5,5.16019757]
[1750709443798,0.005,2325.6,2325.5,4.3001505]
[1750709444387,0.005,2325.6,2325.1,7.98341969]
[1750709444587,0.8346,2325.6,2325.1,7.467]
[1750709444799,0.8346,2325.6,2325.5,4.3001505]
[1750709444800,0.005,2325.6,2325.5,4.3001505]
[1750709444961,0.005,2325.6,2325.5,11.7731505]
[1750709445869,0.005,2325.6,2325.5,21.7731505]
[1750709446453,0.005,2325.6,2325.5,14.3001505]
[1750709447084,0.005,2325.6,2325.5,15.0806505]
[1750709447491,0.005,2325.6,2325.5,15.6306505]
[1750709447789,0.04,2325.9,2325.8,5.63009583]
[1750709447990,0.2248756,2326.2,2326.1,5.07954131]
[1750709448162,0.2248756,2326.2,2326.1,12.57854131]
[1750709448362,0.2248756,2326.2,2326.1,22.57854131]
[1750709448752,0.2248756,2326.2,2326.1,15.07954131]
[1750709448952,0.2248756,2326.2,2326.1,22.57754131]
[1750709449150,0.2248756,2326.2,2326.1,14.29904131]
[1750709449353,0.2248756,2326.2,2325.9,4.29930935]
[1750709450102,0.2248756,2326.2,2325.5,4.30014798]
[1750709450103,0.2248756,2326.2,2325.6,4.29985371]
[1750709450253,1.0153756,2326.2,2325.8,4.29959583]
[1750709450453,0.2248756,2326.2,2325.8,5.08411414]
[1750709450897,0.2248756,2326.2,2325.9,4.29931648]
[1750709451095,0.2248756,2326.2,2326.0,11.81219206]
[1750709451250,0.2248756,2326.2,2326.0,7.513]
[1750709451451,0.7905,2326.1,2325.5,0.7846]
[1750709451666,0.7905,2326.1,2325.6,4.29980191]
[1750709451868,0.7905,2326.1,2325.7,7.509]
[1750709452055,0.7905,2326.1,2325.7,11.80877812]
[1750709452284,0.7905,2326.1,2325.8,4.29957455]
[1750709452471,0.7905,2326.1,2325.7,11.80871013]
[1750709452672,0.7905,2326.1,2325.7,11.80877528]
[1750709453172,0.7905,2326.1,2325.8,4.29957377]
[1750709453880,0.7905,2326.1,2325.9,4.2993573]
[1750709454179,0.7905,2326.1,2326.0,7.501]
[1750709454594,0.7905,2326.1,2325.9,7.501]
[1750709455567,0.2248756,2326.2,2325.9,7.501]
[1750709455568,0.2248756,2326.2,2326.0,1.18005745]
[1750709455770,0.2248756,2326.2,2326.1,7.495]
[1750709456908,0.2248756,2326.2,2326.0,7.496]
[1750709457566,0.2248756,2326.2,2326.1,4.29904131]
[1750709458179,0.2248756,2326.2,2326.1,11.79004131]
[1750709458596,0.2248756,2326.2,2326.1,7.49]
[1750709458811,1.0069756,2326.2,2326.1,7.49]
[1750709459373,1.0069756,2326.2,2325.8,4.29958525]
[1750709459577,1.0069756,2326.2,2325.9,11.78740081]
[1750709459816,0.2248756,2326.2,2325.9,1.60869861]
[1750709459980,0.2248756,2326.2,2326.0,4.29920591]
[1750709460173,0.2248756,2326.2,2326.1,7.498]
[1750709460380,0.2248756,2326.2,2326.1,11.79704131]
[1750709460805,0.2248756,2326.2,2326.1,7.498]
[1750709461022,0.2248756,2326.2,2326.0,4.29915479]
[1750709461239,0.2248756,2326.2,2326.1,4.29904131]
[1750709461738,0.2248756,2326.2,2326.1,5.07774131]
[1750709461926,0.2248756,2326.2,2326.1,11.80104131]
[1750709462338,0.2248756,2326.2,2326.1,36.71710054]
[1750709463729,0.2248756,2326.2,2326.1,29.21510054]
[1750709464043,0.2248756,2326.2,2326.1,30.12338179]
[1750709464265,0.2248756,2326.2,2326.1,4.29904131]
[1750709465667,0.2248756,2326.2,2326.1,11.83004131]
[1750709466144,0.2248756,2326.2,2326.1,12.59294131]
[1750709466349,0.2248756,2326.2,2326.1,27.50900054]
[1750709466825,0.2248756,2326.2,2326.1,11.82304131]
[1750709467749,0.2248756,2326.2,2325.7,0.7629]
[1750709467925,0.2248756,2326.2,2325.9,4.29931102]
[1750709468157,0.2248756,2326.2,2326.0,11.82020578]
[1750709468345,0.2248756,2326.2,2326.0,7.521]
[1750709469189,0.7532,2326.1,2325.9,7.516]
[1750709469380,0.7532,2326.1,2325.9,11.81538063]
[1750709469583,0.7532,2326.1,2326.0,4.29922613]
[1750709470490,0.7532,2326.1,2325.9,11.81530111]
[1750709470701,0.7532,2326.1,2326.0,4.29922613]
[1750709470902,0.7532,2326.1,2326.0,7.516]
[1750709471813,0.2248756,2326.2,2326.1,4.29904131]
[1750709472542,0.2248756,2326.2,2326.0,11.81508475]
[1750709472543,0.2248756,2326.2,2326.0,7.516]
[1750709472858,0.2248756,2326.2,2326.0,11.81521942]
[1750709473551,0.2248756,2326.2,2326.1,4.29904131]
[1750709474163,0.2248756,2326.2,2325.3,4.558]
[1750709474375,0.2248756,2326.2,2325.9,4.29924745]
[1750709474575,0.2248756,2326.2,2325.9,7.505]
[1750709474794,0.2248756,2326.2,2325.9,11.80432778]
[1750709475196,0.2248756,2326.2,2326.0,4.29922407]
[1750709475399,0.2248756,2326.2,2325.9,11.80432778]
[1750709475400,0.2248756,2326.2,2325.9,11.80431804]
[1750709475569,0.2248756,2326.2,2326.0,4.29920969]
[1750709475937,0.04,2326.9,2326.2,0.7641]
[1750709475938,0.13947993,2326.7,2326.2,0.7641]
[1750709476224,0.13947993,2326.7,2326.1,31.82710054]
[1750709476225,0.04,2326.9,2326.8,35.08590721]
[1750709476366,0.04,2326.9,2326.8,17.75184798]
[1750709476565,0.04,2326.9,2326.8,12.64384798]
[1750709476807,0.04,2326.9,2326.8,8.3461]
[1750709477018,0.04,2326.9,2326.8,7.583]
[1750709477161,0.04,2326.9,2326.8,11.88074798]
[1750709477898,0.04,2326.9,2326.8,27.72484798]
[1750709478134,0.04,2327.9,2327.7,4.29600109]
[1750709478300,0.04,2327.9,2327.8,7.579]
[1750709479002,0.04,2327.9,2327.8,36.79096093]
[1750709479309,0.04,2327.9,2327.8,37.57306093]
[1750709479535,0.2248756,2328.5,2327.8,37.57306093]
[1750709479536,0.2248756,2328.5,2328.2,4.29516364]
[1750709479842,0.04294,2328.7,2328.1,5.08]
[1750709479843,0.8303,2329.4,2328.7,4.29410716]
[1750709480143,0.8303,2329.4,2328.4,0.7641]
[1750709480144,1.13162757,2329.4,2328.8,7.632]
[1750709480433,0.8303,2329.4,2328.8,7.632]
[1750709480654,2.117,2329.3,2328.8,7.632]
[1750709480786,0.29473,2329.2,2328.8,7.632]
[1750709480986,0.8303,2329.4,2328.8,7.632]
[1750709481219,0.04,2329.9,2328.9,14.91605923]
[1750709481484,0.04,2329.9,2329.3,14.91605923]
[1750709481678,0.04,2329.9,2329.4,7.642]
[1750709481913,0.2248756,2330.8,2330.7,5.07775648]
[1750709482116,0.04,2331.9,2331.8,4.83853246]
[1750709482431,0.8129,2333.0,2331.9,1.86356766]
[1750709482579,0.8129,2333.0,2331.5,4.28908428]
[1750709482945,0.2248756,2333.1,2331.9,10.81763733]
[1750709483138,0.2248756,2333.1,2332.3,4.28760522]
[1750709483365,0.2248756,2333.1,2332.0,10.81763733]
[1750709483574,0.2248756,2333.1,2332.1,7.854]
[1750709483872,0.2248756,2333.1,2332.3,4.28761308]
[1750709484013,0.1748756,2333.1,2333.0,15.10396394]
[1750709484209,1e-08,2333.5,2333.4,15.11859184]
[1750709484413,0.29980593,2335.0,2334.8,5.11591648]
[1750709484613,0.22400068,2335.1,2335.0,4.28265524]
[1750709484871,0.22400068,2335.1,2335.0,8.085]
[1750709485082,10.317,2337.5,2335.0,8.085]
[1750709485083,0.7594,2337.6,2335.9,4.83100518]
[1750709485377,0.7594,2337.6,2335.9,12.48000518]
[1750709485378,0.9540913,2337.6,2335.9,12.48000518]
[1750709485699,11.2710913,2337.6,2335.6,4.28147209]
[1750709485813,11.2710913,2337.6,2335.9,4.28100518]
[1750709486016,11.2710913,2337.6,2335.9,13.04100518]
[1750709486277,0.7594,2337.6,2335.9,4.28100518]
[1750709486575,0.7594,2337.6,2335.5,0.55]
[1750709486576,0.9679698,2336.0,2335.5,0.55]
[1750709486776,0.9679698,2336.0,2335.1,4.28234443]
[1750709486777,0.9679698,2336.0,2335.8,4.28115663]
[1750709487078,10.81763733,2337.4,2335.8,4.2810521]
[1750709487228,0.2342109,2337.6,2335.9,9.7882]
[1750709487415,0.2342109,2337.6,2336.3,10.0]
[1750709487611,0.2342109,2337.6,2336.7,10.81763733]
[1750709487929,0.29671514,2338.8,2337.3,7.158025]
[1750709488265,0.8988,2340.0,2338.8,0.7572]
[1750709488266,0.1,2340.0,2338.8,0.7572]
[1750709488465,0.1,2340.0,2338.9,14.27551413]
[1750709488778,0.1,2340.0,2338.8,0.7572]
[1750709488779,4.333,2339.4,2338.8,0.7572]
[1750709489078,0.1,2340.0,2338.9,4.63242661]
[1750709489234,0.8988,2340.0,2338.9,0.35691248]
[1750709489576,0.1,2340.0,2339.1,0.7572]
[1750709489713,0.1,2340.0,2339.3,10.0]
[1750709489916,0.1,2340.0,2338.6,4.27600776]
[1750709489917,11.296,2339.9,2339.4,0.3568362]
[1750709490115,11.296,2339.9,2336.4,4.28003987]
[1750709490116,12.95441061,2339.5,2336.4,4.28003987]
[1750709490352,11.296,2339.9,2336.0,0.7916]
[1750709490353,0.7729,2338.2,2336.0,0.7916]
[1750709490551,0.7729,2338.2,2337.6,4.27785812]
[1750709490771,0.7729,2338.2,2336.6,12.95441061]
[1750709490918,10.0,2339.2,2337.1,10.0]
[1750709490919,0.7729,2338.8,2337.1,10.0]
[1750709491118,0.7729,2338.8,2337.1,11.27]
[1750709491316,0.8199,2340.4,2338.5,12.95441061]
[1750709491566,12.95441061,2340.2,2337.7,12.95441061]
[1750709491727,0.7859,2339.8,2337.8,10.0]
[1750709491934,10.0,2339.7,2337.7,4.27754647]
[1750709492136,0.7918,2340.4,2339.1,4.27496725]
[1750709492348,0.7918,2341.5,2339.3,10.0]
[1750709492553,0.7918,2341.5,2339.2,13.38190734]
[1750709492554,0.7918,2340.2,2338.5,0.7644]
[1750709492755,0.7918,2340.2,2339.3,4.27461012]
[1750709493013,0.7918,2340.2,2338.5,10.7644]
[1750709493238,0.7918,2340.2,2338.7,0.7]
[1750709493443,0.7918,2340.2,2338.7,10.0]
[1750709493667,1.35908054,2339.9,2337.9,11.448]
[1750709493995,13.31349115,2339.8,2337.8,0.7528]
[1750709494141,13.31349115,2339.8,2337.4,11.432]
[1750709494142,0.7956,2339.6,2337.4,11.432]
[1750709494346,10.64825721,2339.5,2337.7,12.95441061]
[1750709494543,0.35993128,2339.4,2337.7,12.95441061]
[1750709494741,0.35993128,2339.4,2337.4,11.432]
[1750709494961,0.35993128,2339.4,2337.3,4.27832623]
[1750709495182,0.7956,2339.3,2337.2,0.7528]
[1750709495390,0.7956,2339.3,2337.2,5.03139381]
[1750709495593,0.36025721,2339.2,2337.4,12.95441061]
[1750709495743,0.36025721,2339.2,2337.6,4.27788258]
[1750709496302,0.36025721,2339.2,2337.2,0.7528]
[1750709496303,0.36025721,2339.2,2337.3,4.27829339]
[1750709496438,1.77128399,2339.2,2337.2,0.7528]
[1750709496641,11.77128399,2339.2,2337.2,0.7528]
[1750709496842,11.77128399,2339.2,2337.0,11.418]
[1750709497099,11.77128399,2339.2,2337.1,4.27867425]
[1750709497245,11.77128399,2339.2,2337.1,4.27880706]
[1750709497554,11.77128399,2339.2,2336.9,17.23353294]
[1750709497555,0.755,2339.0,2336.9,17.23356915]
[1750709497756,0.755,2338.8,2336.7,0.7528]
[1750709497960,0.36004378,2338.7,2336.7,5.03227312]
[1750709498140,0.36004378,2338.7,2337.1,4.27871821]
[1750709498339,0.36004378,2338.7,2337.1,4.27875387]
[1750709498577,1.82198922,2338.7,2337.1,14.27873854]
[1750709498782,1.82198922,2338.7,2337.1,10.0]
[1750709498968,1.82198922,2338.7,2336.5,11.308]
[1750709499164,1.82198922,2338.7,2336.9,10.55]
[1750709499350,0.36004378,2338.7,2336.9,10.55]
[1750709499562,0.36004378,2338.7,2336.9,14.82906686]
[1750709499760,0.36004378,2338.7,2336.9,10.55]
[1750709500085,0.36004378,2338.7,2337.3,10.0]
[1750709500259,0.36004378,2338.7,2337.3,4.27834875]
[1750709500587,0.36004378,2338.7,2337.3,10.0]
[1750709500753,1.49974816,2338.7,2337.3,10.0]
[1750709501354,1.49974816,2338.7,2337.3,14.27834144]
[1750709501668,1.49974816,2338.7,2337.1,4.27875034]
[1750709501669,1.49974816,2338.7,2337.1,12.95441061]
[1750709501865,0.36004378,2338.7,2336.4,12.95441061]
[1750709502182,0.36004378,2338.7,2337.0,4.27893553]
[1750709502385,0.36004378,2338.7,2337.1,10.0]
[1750709502541,0.36004378,2338.7,2336.9,10.0]
[1750709502748,0.8256,2338.5,2336.5,11.21]
[1750709502983,1.73825827,2338.4,2336.5,15.48989284]
[1750709503158,0.36025721,2338.3,2336.9,4.27903061]
[1750709503475,0.36025721,2338.3,2336.6,4.27972267]
[1750709503784,0.8256,2338.1,2336.5,4.27978299]
[1750709503981,0.91025721,2338.0,2335.6,0.7959]
[1750709504276,10.8256,2338.1,2335.6,0.7959]
[1750709504277,0.55,2337.7,2335.6,11.9559]
[1750709504588,13.78001061,2337.8,2335.8,12.95441061]
[1750709504589,0.36025721,2337.6,2335.8,12.95441061]
[1750709504743,0.36025721,2337.6,2335.0,5.07855524]
[1750709504744,0.8256,2337.5,2335.0,5.07855524]
[1750709505075,0.8256,2337.5,2335.9,4.28088062]
[1750709505402,0.36025721,2337.4,2335.9,4.28088062]
[1750709505699,0.36025721,2337.4,2335.8,4.28110358]
[1750709505894,0.36025721,2337.4,2335.4,17.23629688]
[1750709505895,0.36025721,2337.4,2335.7,4.28135643]
[1750709506044,0.36025721,2337.4,2335.2,4.28212139]
[1750709506045,0.36025721,2337.4,2335.0,0.7959]
[1750709506245,0.36025721,2337.4,2335.4,12.95441061]
[1750709506510,0.36025721,2337.4,2336.8,0.804]
[1750709506992,0.36025721,2337.4,2336.3,0.804]
[1750709507149,0.36025721,2337.4,2336.0,24.07741061]
[1750709507345,0.36025721,2337.4,2335.8,0.804]
[1750709507600,0.36025721,2337.4,2335.0,4.28252382]
[1750709507760,0.8304,2337.1,2335.4,4.28183572]
[1750709508088,0.55,2336.8,2335.3,4.28199638]
[1750709508247,10.281,2336.7,2335.2,10.0]
[1750709508582,10.281,2336.7,2335.1,13.38266299]
[1750709508583,10.64092958,2336.7,2335.1,0.42825238]
[1750709508746,10.64092958,2336.7,2335.4,10.0]
[1750709508947,10.64092958,2336.7,2335.2,10.0]
[1750709509274,0.35992958,2336.6,2335.3,4.28198541]
[1750709509583,0.35992958,2336.6,2335.4,4.28189576]
[1750709509796,0.35992958,2336.6,2335.2,4.28218456]
[1750709510000,0.8304,2336.5,2335.2,14.28218456]
[1750709510164,0.8304,2336.5,2335.0,11.098]
[1750709510357,0.8304,2336.5,2335.5,4.28173765]
[1750709510605,0.8304,2336.5,2335.4,14.28184314]
[1750709510900,0.8304,2336.5,2333.5,2.1050559]
[1750709510901,0.7828,2336.1,2334.1,0.7986]
[1750709511102,0.7828,2336.1,2334.7,4.28306506]
[1750709511475,0.55,2336.2,2333.4,0.7572]
[1750709511476,0.8283,2335.6,2334.8,0.38320065]
[1750709511670,12.95441061,2335.3,2334.1,4.28415486]
[1750709511870,12.48957106,2335.5,2334.3,4.28381881]
[1750709512081,12.48957106,2335.5,2334.4,0.38327131]
[1750709512289,12.48957106,2335.5,2334.5,0.38327131]
[1750709512487,12.48957106,2335.5,2334.4,0.38327131]
[1750709512777,2.54439817,2335.4,2334.2,4.28401768]
[1750709512989,2.54439817,2335.4,2334.3,0.38312998]
[1750709513187,0.8283,2335.3,2334.4,0.38312998]
[1750709513386,0.8283,2335.3,2334.5,0.38312998]
[1750709513606,0.8283,2335.3,2334.6,0.38312998]
[1750709513790,0.33726982,2335.2,2334.7,0.38402223]
[1750709514007,0.33726982,2335.2,2334.8,0.38400748]
[1750709514318,0.33726982,2335.2,2334.3,0.38375862]
[1750709514479,0.33726982,2335.2,2334.4,0.38375862]
[1750709514679,0.33726982,2335.2,2334.5,0.38375862]
[1750709515009,0.33726982,2335.2,2333.7,10.994]
[1750709515211,0.33726982,2335.2,2333.8,4.66868266]
[1750709515411,0.8283,2335.1,2334.1,4.28421329]
[1750709515579,0.8283,2335.1,2334.2,0.38382535]
[1750709515779,0.8283,2335.1,2334.3,0.38361612]
[1750709516017,0.8283,2335.1,2334.4,0.38361612]
[1750709516184,0.8283,2335.1,2334.5,0.38333421]
[1750709516386,0.8283,2335.1,2333.9,10.383348]
[1750709516619,0.8283,2335.1,2333.8,4.28484851]
[1750709516620,4.505,2335.0,2334.0,4.66755084]
[1750709516794,4.505,2335.0,2334.4,4.28361788]
[1750709516997,4.505,2335.0,2334.5,4.66668016]
[1750709517306,4.505,2335.0,2334.5,4.28357193]
[1750709517704,4.505,2335.0,2334.5,4.6665884]
[1750709517909,4.505,2335.0,2334.5,4.28357193]
[1750709518091,4.505,2335.0,2334.6,4.28337548]
[1750709518286,0.8283,2335.1,2334.9,4.28271941]
[1750709518488,0.8283,2335.1,2334.4,10.0]
[1750709518489,0.8283,2335.1,2335.0,0.38294918]
[1750709519410,0.8283,2335.1,2335.0,0.38366989]
[1750709519611,0.8283,2335.1,2334.9,4.28283834]
[1750709519821,0.8283,2335.1,2334.3,4.28379994]
[1750709519989,0.8283,2335.1,2334.4,0.38396397]
[1750709520189,0.8283,2335.1,2333.7,10.866]
[1750709520190,4.506,2335.0,2334.5,0.38396397]
[1750709520516,4.506,2335.0,2334.6,0.38385659]
[1750709520674,4.506,2335.0,2333.7,10.866]
[1750709520878,0.8283,2335.1,2335.0,4.28265524]
[1750709521077,0.8283,2335.1,2335.0,4.66651408]
[1750709521326,0.7812,2335.5,2335.4,4.28192172]
[1750709521618,0.8168,2336.1,2335.4,0.38385884]
[1750709521817,1.11048,2336.0,2335.5,0.38385884]
[1750709521982,0.8168,2336.1,2336.0,4.28082191]
[1750709522379,4.506,2337.6,2336.2,10.0]
[1750709522623,0.8168,2337.5,2336.3,4.28017499]
[1750709522832,0.8168,2337.5,2336.3,4.28025421]
[1750709522979,4.506,2337.6,2335.9,4.28090035]
[1750709522980,0.8168,2337.2,2335.9,4.28090035]
[1750709523178,12.95441061,2337.3,2336.3,4.28018334]
[1750709523179,0.8168,2337.1,2336.3,4.28018334]
[1750709523435,0.8168,2338.0,2336.7,12.95441061]
[1750709523612,0.8168,2338.0,2336.8,10.874]
[1750709523812,0.8168,2338.0,2337.0,4.27899015]
[1750709523994,0.8168,2338.0,2337.1,10.0]
[1750709524194,0.8168,2338.0,2337.0,4.2789136]
[1750709524394,0.8168,2338.0,2336.3,0.7555]
[1750709524607,0.8168,2338.0,2336.8,4.27935638]
[1750709524828,4.506,2339.1,2337.8,4.27750085]
[1750709524829,0.8168,2339.0,2337.8,4.27750085]
[1750709525015,0.8168,2339.0,2337.7,4.27770885]
[1750709525338,0.8168,2339.0,2338.1,4.27686829]
[1750709525633,0.8168,2339.0,2337.8,0.38284563]
[1750709525634,0.8168,2339.0,2337.8,4.27746188]
[1750709526137,0.8168,2339.0,2337.7,0.38291867]
[1750709526292,0.53228,2338.9,2338.1,4.27682738]
[1750709526497,5.03628,2338.9,2338.2,4.27663646]
[1750709526698,5.03628,2338.9,2337.5,4.2780529]
[1750709526699,0.7844,2338.8,2337.5,4.2780529]
[1750709526937,0.55,2338.7,2337.4,4.27817984]
[1750709527229,0.55,2338.7,2337.7,4.27766112]
[1750709527433,4.504,2338.6,2337.8,4.27743463]
[1750709527737,0.7844,2338.8,2337.2,10.0]
[1750709527738,4.504,2338.7,2337.2,10.0]
[1750709527940,0.005,2339.2,2339.1,4.27514856]
[1750709528242,1.0186109,2340.1,2339.1,4.27514856]
[1750709528243,1.0186109,2340.1,2339.9,4.2736869]
[1750709528563,0.2342109,2340.1,2340.0,4.27350427]
[1750709528837,0.2342109,2340.1,2340.0,38.40087125]
[1750709528999,0.2342109,2340.1,2339.6,14.82413648]
[1750709529000,0.2342109,2340.1,2339.5,4.27428573]
[1750709529209,0.2342109,2340.1,2339.6,0.38208751]
[1750709529399,0.2342109,2340.1,2339.0,0.7568]
[1750709529400,0.2342109,2340.1,2339.7,4.27392189]
[1750709529599,0.7844,2340.0,2338.7,4.27578095]
[1750709529828,0.55,2339.7,2338.6,1.284898]
[1750709530010,0.55,2339.7,2338.3,10.776]
[1750709530427,0.55,2339.7,2338.5,4.27622964]
[1750709530606,0.55,2339.7,2338.4,4.27637075]
[1750709530808,0.55,2339.7,2338.3,15.05253832]
[1750709531168,0.55,2339.7,2338.5,4.27624545]
[1750709531439,0.2342109,2340.1,2340.0,4.27350427]
[1750709531647,0.7529,2341.3,2340.2,0.7836]
[1750709531858,10.279,2341.2,2339.2,5.05840513]
[1750709532147,10.0,2340.3,2338.8,4.27559973]
[1750709532363,0.7529,2339.5,2338.0,0.7836]
[1750709532564,12.95441061,2339.2,2337.6,4.65915096]
[1750709532859,12.95441061,2339.2,2337.4,0.7836]
[1750709532860,0.7529,2340.1,2337.9,4.27734291]
[1750709533041,12.95441061,2340.1,2338.0,0.38125952]
[1750709533242,4.501,2340.4,2337.8,0.7836]
[1750709533243,0.7529,2339.6,2337.8,1.16489893]
[1750709533455,5.87173106,2339.5,2337.8,11.006]
[1750709533618,4.501,2339.5,2338.1,12.95441061]
[1750709533815,0.7529,2339.6,2338.3,4.27661121]
[1750709534014,0.7529,2339.6,2338.9,4.2753891]
[1750709534258,0.7529,2339.6,2339.0,4.27527372]
[1750709534426,0.7529,2339.6,2338.9,4.27536131]
[1750709534626,0.7529,2339.6,2338.4,10.0]
[1750709534860,0.7529,2339.6,2339.1,4.27504151]
[1750709535158,0.7529,2339.6,2339.0,4.27522353]
[1750709535335,0.7529,2339.6,2338.8,4.27567107]
[1750709535662,0.7529,2339.6,2338.9,14.27551413]
[1750709535860,0.7529,2339.6,2339.5,4.27441761]
[1750709536159,0.7529,2339.6,2339.3,4.2747801]
[1750709536458,0.7529,2339.6,2339.4,4.27456281]
[1750709536677,0.7529,2339.6,2339.4,4.27442871]
[1750709536969,0.8128,2340.2,2338.3,5.06017809]
[1750709537119,0.55,2339.9,2338.0,4.27715996]
[1750709537326,0.55,2339.7,2338.3,10.0]
[1750709537522,0.55,2339.7,2337.4,4.27825789]
[1750709537523,0.8128,2339.2,2337.4,4.27825789]
[1750709537727,0.8128,2339.2,2337.6,4.27789185]
[1750709537728,5.3128,2339.2,2337.6,4.27789185]
[1750709537943,5.3128,2339.2,2337.5,4.27807486]
[1750709538144,5.3128,2339.2,2339.1,4.27514856]
[1750709538550,0.8128,2339.2,2339.1,4.27514856]
[1750709538754,0.8128,2339.2,2338.8,4.27558035]
[1750709538947,0.8128,2339.2,2339.1,4.27514856]
[1750709539176,0.8128,2339.2,2338.5,20.899]
[1750709539474,0.8128,2339.2,2339.1,4.27514856]
[1750709539681,0.8128,2340.0,2338.9,4.27551413]
[1750709539823,0.8128,2340.0,2339.6,4.27412509]
[1750709540018,12.95441061,2341.4,2339.6,4.27412509]
[1750709540019,0.8128,2340.9,2339.8,12.95441061]
[1750709540236,0.8128,2340.9,2339.9,10.0]
[1750709540437,0.8128,2340.9,2340.8,4.27204374]
[1750709540731,0.8128,2340.9,2339.9,10.0]
[1750709540938,0.8128,2340.9,2340.5,4.27242247]
[1750709541140,0.8128,2340.9,2340.6,4.27231042]
[1750709541339,0.8128,2340.9,2340.8,4.27204374]
[1750709542046,4.5,2341.3,2340.8,4.27204374]
[1750709542256,0.036,2341.6,2340.6,12.95441061]
[1750709542561,0.036,2341.6,2341.5,4.2707666]
[1750709542856,0.036,2341.6,2341.2,4.27118689]
[1750709543048,0.036,2341.6,2341.3,4.2710302]
[1750709543253,0.036,2341.6,2341.0,4.27167876]
[1750709543487,0.036,2341.6,2340.7,10.785]
[1750709543625,0.036,2341.6,2340.7,4.2721225]
[1750709543829,0.036,2341.6,2341.0,4.27167695]
[1750709544028,0.36025721,2341.5,2340.9,4.27181528]
[1750709544230,0.36025721,2341.5,2340.6,4.27240878]
[1750709544232,0.36025721,2341.5,2341.4,14.270949]
[1750709544429,0.036,2341.6,2341.5,4.2707666]
[1750709545424,0.036,2341.6,2340.8,0.785]
[1750709545734,0.036,2341.6,2340.7,12.95441061]
[1750709545934,0.036,2341.6,2340.8,10.789]
[1750709546125,0.036,2341.6,2341.5,17.22517721]
[1750709546326,0.036,2341.6,2341.5,4.2707666]
[1750709546553,0.036,2341.6,2341.5,15.0497666]
[1750709547141,0.036,2341.6,2341.0,12.95441061]
[1750709547346,0.036,2341.6,2341.2,10.0]
[1750709547545,0.036,2341.6,2341.0,12.95441061]
[1750709547546,0.036,2341.6,2341.4,4.27091037]
[1750709547758,0.036,2341.6,2341.3,10.753]
[1750709547759,0.036,2341.6,2341.1,14.27147524]
[1750709547969,0.036,2341.6,2341.2,10.752]
[1750709548328,0.036,2341.6,2341.5,4.2707666]
[1750709548733,0.036,2341.6,2341.4,4.27091702]
[1750709548734,0.036,2341.6,2341.4,10.723]
[1750709549358,0.036,2341.6,2341.5,4.2707666]
[1750709550175,0.036,2341.6,2341.0,10.696]
[1750709550350,0.036,2341.6,2341.1,10.0]
[1750709550552,0.036,2341.6,2341.3,4.27112337]
[1750709550762,0.036,2341.6,2341.3,4.27113142]
[1750709550992,0.036,2341.6,2341.1,10.0]
[1750709551282,0.036,2341.6,2341.3,10.0]
[1750709551484,0.036,2341.6,2341.3,10.68]
[1750709551706,0.7669,2341.5,2340.4,13.70691061]
[1750709551999,0.7669,2341.5,2340.0,5.02585844]
[1750709552199,0.7669,2341.5,2340.2,4.27313904]
[1750709552347,0.7669,2341.5,2340.4,4.27277388]
[1750709552654,0.7669,2341.5,2340.8,4.27193287]
[1750709552859,0.7669,2341.5,2341.4,4.270949]
[1750709553062,0.7669,2341.5,2341.2,4.27122988]
[1750709553254,0.7669,2341.5,2341.0,4.27167876]
[1750709553255,0.7669,2341.5,2341.1,4.27141346]
[1750709553524,0.7669,2341.5,2341.0,10.0]
[1750709553705,0.7669,2341.5,2340.7,12.95441061]
[1750709553706,0.036,2341.6,2339.6,10.0]
[1750709553861,0.036,2341.6,2341.1,4.27137691]
[1750709554201,0.036,2341.6,2341.4,4.27081504]
[1750709554368,0.036,2341.6,2341.5,4.2707666]
[1750709554562,0.036,2341.6,2341.5,14.8977666]
[1750709554942,0.036,2341.6,2341.5,24.8977666]
[1750709555405,0.036,2341.6,2341.5,4.2707666]
[1750709555564,0.036,2341.6,2341.4,10.603]
[1750709555749,0.036,2341.6,2340.9,4.2718016]
[1750709555945,0.036,2341.6,2341.0,23.55741061]
[1750709556149,0.036,2341.6,2341.4,4.27078588]
[1750709556345,0.036,2341.6,2341.5,4.2707666]
[1750709556907,0.036,2341.6,2341.5,15.12492185]
[1750709557399,0.036,2341.6,2341.5,14.2707666]
[1750709557607,0.036,2341.6,2341.5,24.8557666]
[1750709558100,0.036,2341.6,2341.5,24.8327666]
[1750709558279,0.036,2341.6,2341.5,15.1707666]
[1750709558484,0.036,2341.6,2341.5,11.452]
[1750709558804,0.036,2341.6,2341.5,5.1707666]
[1750709559151,0.036,2341.6,2341.5,25.7077666]
[1750709559353,0.036,2341.6,2341.5,5.1707666]
[1750709559607,0.036,2341.6,2341.5,0.9]
[1750709559808,0.8438,2341.6,2341.5,0.9]
[1750709559948,0.8438,2341.6,2340.3,10.531]
[1750709560154,0.8438,2341.6,2340.6,4.27240878]
[1750709560450,0.8438,2341.6,2340.5,4.27259132]
[1750709560686,0.036,2341.6,2340.6,8.54481756]
[1750709560890,0.036,2341.6,2341.2,4.27114676]
[1750709561193,0.036,2341.6,2341.2,10.513]
[1750709561381,0.036,2341.6,2341.2,14.7841755]
[1750709561558,0.036,2341.6,2341.3,4.2711068]
[1750709561890,0.036,2341.6,2341.2,10.513]
[1750709562081,0.036,2341.6,2340.7,12.95441061]
[1750709562273,0.036,2341.6,2340.7,17.81200327]
[1750709562600,0.036,2341.6,2341.1,4.27133384]
[1750709562805,0.036,2341.6,2341.2,10.474]
[1750709562952,0.036,2341.6,2341.0,4.27163659]
[1750709562953,0.036,2341.6,2340.7,13.53984354]
[1750709563157,0.036,2341.6,2341.1,4.27147281]
[1750709563464,0.036,2341.6,2340.8,10.474]